bitfinex/quotes_SOLUSD_20240811
["timestamp","ask_amount","ask_price","bid_price","bid_amount"]
[1723415143854,36.11,142.45,142.4,25.355]
[1723415144243,29.09,142.45,142.4,25.355]
[1723415144438,29.09,142.45,142.41,7.0219]
[1723415144641,29.09,142.47,142.42,17.5535]
[1723415144952,29.09,142.47,142.4,25.355]
[1723415144953,29.09,142.51,142.46,7.0195]
[1723415145556,36.107,142.51,142.41,0.12549]
[1723415145753,29.09,142.51,142.46,7.0194]
[1723415145971,7.0176,142.5,142.43,0.12549]
[1723415146294,36.1071,142.51,142.43,0.12549]
[1723415146657,36.1071,142.51,142.45,7.0199]
[1723415146859,7.0175,142.5,142.45,7.0199]
[1723415148176,36.107,142.51,142.45,7.0199]
[1723415148348,7.0168,142.52,142.46,1.40372833]
[1723415148549,7.0159,142.54,142.49,24.389]
[1723415148946,29.09,142.53,142.45,24.389]
[1723415149490,7.018,142.5,142.45,24.389]
[1723415149654,7.0171,142.51,142.45,31.4089]
[1723415149847,7.0185,142.48,142.41,31.4105]
[1723415150053,36.1093,142.47,142.41,24.389]
[1723415150257,36.1093,142.47,142.41,31.4108]
[1723415150462,7.0197,142.46,142.41,24.389]
[1723415150977,7.0197,142.46,142.35,36.38680808]
[1723415150978,29.09,142.45,142.37,25.052]
[1723415151386,36.11,142.45,142.39,7.0229]
[1723415151686,29.09,142.45,142.4,7.0222]
[1723415152053,29.09,142.45,142.41,7.0219]
[1723415152252,36.109,142.47,142.41,7.0219]
[1723415152491,36.1091,142.47,142.41,7.0219]
[1723415152789,7.0196,142.46,142.4,7.0223]
[1723415153654,36.109,142.47,142.41,1.403788]
[1723415154192,7.0196,142.46,142.4,7.0222]
[1723415154372,7.0196,142.46,142.41,7.55427639]
[1723415154552,36.1091,142.47,142.41,7.0218]
[1723415154960,36.1091,142.47,142.38,1.11325702]
[1723415154961,29.09,142.47,142.38,1.11325702]
[1723415155267,29.09,142.47,142.39,0.12549]
[1723415155574,10.2734,142.5,142.39,30.45408066]
[1723415155776,29.09,142.51,142.4,0.25098]
[1723415155978,29.09,142.51,142.41,0.12549]
[1723415156489,29.09,142.51,142.4,0.12549]
[1723415156656,29.09,142.49,142.4,0.25098]
[1723415157281,29.09,142.49,142.4,1.65487874]
[1723415157884,29.09,142.51,142.42,34.8317]
[1723415158180,29.09,142.49,142.42,25.3313]
[1723415158371,29.09,142.47,142.42,25.3313]
[1723415159088,29.09,142.49,142.42,25.3313]
[1723415159583,29.09,142.51,142.42,25.3313]
[1723415159888,10.0333,142.54,142.44,29.21549]
[1723415160088,29.09,142.55,142.45,1.40356796]
[1723415160261,29.09,142.55,142.46,1.40346943]
[1723415160462,29.09,142.57,142.47,9.3722]
[1723415160683,29.09,142.59,142.48,54.23358104]
[1723415160866,29.09,142.59,142.49,1.40313484]
[1723415161359,29.09,142.57,142.48,23.74039]
[1723415161567,29.09,142.59,142.49,1.24977399]
[1723415161758,29.09,142.59,142.5,0.12549]
[1723415161961,9.9074,142.62,142.5,30.46508859]
[1723415162157,29.09,142.62,142.52,29.09]
[1723415162383,29.09,142.62,142.53,1.24933716]
[1723415162588,29.09,142.62,142.51,1.37500249]
[1723415162779,29.09,142.62,142.53,0.12549]
[1723415162962,29.09,142.62,142.54,24.4251]
[1723415163363,29.09,142.64,142.54,24.4251]
[1723415163583,9.5635,142.66,142.56,9.95319]
[1723415163584,38.6535,142.66,142.56,9.95319]
[1723415163884,29.09,142.66,142.57,1.40221714]
[1723415164085,29.09,142.68,142.6,24.4251]
[1723415164305,651.1635,142.72,142.6,24.4251]
[1723415164306,29.09,142.7,142.61,1.40207212]
[1723415164470,29.09,142.68,142.6,24.4251]
[1723415165566,29.09,142.64,142.6,24.4251]
[1723415166963,29.09,142.66,142.6,24.4251]
[1723415168393,1.39736078,142.65,142.6,24.4251]
[1723415168690,29.09,142.63,142.6,24.4251]
[1723415169277,29.09,142.65,142.6,24.4251]
[1723415169778,29.09,142.69,142.61,1.40108023]
[1723415171295,29.09,142.67,142.6,24.4251]
[1723415171497,29.09,142.65,142.6,24.4251]
[1723415172983,29.09,142.61,142.56,23.9906]
[1723415173176,1.39736078,142.6,142.56,23.9906]
[1723415173376,29.09,142.59,142.56,23.9906]
[1723415174074,29.09,142.57,142.52,34.1937]
[1723415174694,29.09,142.59,142.53,1.40311918]
[1723415174895,29.09,142.61,142.53,1.40311918]
[1723415175093,29.09,142.61,142.52,34.1937]
[1723415175296,29.09,142.63,142.52,64.68648501]
[1723415175590,9.4976,142.69,142.58,24.017]
[1723415175798,29.09,142.64,142.58,24.017]
[1723415176573,29.09,142.66,142.58,24.017]
[1723415177211,29.09,142.64,142.58,24.017]
[1723415177498,29.09,142.66,142.58,24.017]
[1723415178195,29.09,142.66,142.59,1.40234003]
[1723415178606,29.09,142.66,142.58,24.017]
[1723415179621,29.09,142.6,142.58,24.017]
[1723415179901,29.09,142.6,142.53,24.9605]
[1723415180276,29.09,142.58,142.53,24.9605]
[1723415180872,29.09,142.54,142.45,7.29048938]
[1723415181079,29.09,142.52,142.46,1.40348802]
[1723415181300,9.5935,142.57,142.44,24.9605]
[1723415181301,29.09,142.54,142.44,24.9605]
[1723415182474,29.09,142.52,142.44,24.9605]
[1723415182674,29.09,142.5,142.44,24.9605]
[1723415182901,29.09,142.48,142.44,24.9605]
[1723415183319,29.09,142.5,142.44,24.9605]
[1723415184191,29.09,142.52,142.45,1.4037127]
[1723415184484,29.09,142.5,142.44,24.9605]
[1723415184903,7.0181,142.49,142.44,31.9809]
[1723415185281,7.0181,142.49,142.44,24.9605]
[1723415185514,36.1075,142.5,142.44,31.9809]
[1723415186004,29.09,142.5,142.44,24.9605]
[1723415186583,29.09,142.48,142.44,24.9605]
[1723415187715,7.019,142.47,142.44,24.9605]
[1723415188201,29.09,142.46,142.44,24.9605]
[1723415188405,7.02,142.45,142.44,24.9605]
[1723415188898,36.1095,142.46,142.44,24.9605]
[1723415189202,36.1095,142.46,142.4,23.6227]
[1723415189787,36.1095,142.46,142.41,7.0219]
[1723415190481,29.09,142.46,142.4,23.6227]
[1723415190689,7.02,142.45,142.4,23.6227]
[1723415191080,29.09,142.44,142.4,23.6227]
[1723415191606,36.1109,142.44,142.4,23.6227]
[1723415191811,7.02,142.45,142.4,23.6227]
[1723415192593,7.0205,142.44,142.4,23.6227]
[1723415192989,7.0201,142.45,142.4,23.6227]
[1723415193390,7.0201,142.45,142.4,30.645]
[1723415194006,36.1086,142.48,142.42,7.021]
[1723415194211,7.0186,142.48,142.42,7.021]
[1723415194392,7.0181,142.49,142.44,7.0204]
[1723415195307,7.0185,142.48,142.42,17.5529]
[1723415196498,7.0185,142.48,142.43,8.42347144]
[1723415197011,7.0184,142.49,142.42,17.5529]
[1723415197216,7.0186,142.48,142.42,17.5529]
[1723415198524,7.0181,142.49,142.44,7.0201]
[1723415198842,40.33393752,142.54,142.45,1.40354066]
[1723415198993,40.33393752,142.54,142.48,24.6005]
[1723415199192,7.0161,142.53,142.48,24.6005]
[1723415199496,7.0156,142.54,142.49,1.40349235]
[1723415199816,29.09,142.58,142.48,24.6005]
[1723415200192,7.0149,142.56,142.51,7.017]
[1723415200708,7.0149,142.56,142.51,8.42010803]
[1723415200911,7.015,142.55,142.5,24.5606]
[1723415201407,29.09,142.58,142.5,17.5432]
[1723415201612,7.0151,142.55,142.5,24.5606]
[1723415202011,7.0147,142.56,142.51,8.41990784]
[1723415202315,29.09,142.58,142.5,17.5432]
[1723415203124,7.015,142.56,142.5,24.5606]
[1723415204633,7.015,142.56,142.51,7.0168]
[1723415206430,29.09,142.58,142.49,0.12549]
[1723415206609,29.09,142.56,142.48,24.6005]
[1723415206916,29.34098,142.59,142.48,24.6005]
[1723415206917,7.018,142.49,142.48,24.6005]
[1723415207537,7.0196,142.46,142.42,23.5662]
[1723415207831,7.02,142.45,142.42,23.5662]
[1723415208935,7.0196,142.46,142.42,23.5662]
[1723415209829,36.109,142.47,142.42,23.5662]
[1723415210532,7.0197,142.46,142.42,23.5662]
[1723415210711,7.0208,142.44,142.42,23.5662]
[1723415211237,7.0209,142.43,142.42,23.5662]
[1723415212437,7.0205,142.44,142.42,23.5662]
[1723415212634,8.41846078,142.43,142.38,31.2459]
[1723415212839,14.31700891,142.5,142.41,7.0217]
[1723415212840,7.0196,142.46,142.41,7.0217]
[1723415213046,36.109,142.47,142.42,7.0213]
[1723415213746,29.09,142.47,142.42,7.0213]
[1723415214115,29.09,142.47,142.41,7.0219]
[1723415214731,36.109,142.47,142.42,7.0214]
[1723415215241,36.109,142.47,142.4,17.5553]
[1723415215242,7.0174,142.51,142.45,7.0199]
[1723415215938,7.0177,142.5,142.45,7.0199]
[1723415216120,7.017,142.51,142.46,30.4237]
[1723415216928,36.1066,142.52,142.46,30.4237]
[1723415217427,23.93149162,142.56,142.48,7.0181]
[1723415217428,7.016,142.54,142.48,7.0181]
[1723415217614,7.016,142.54,142.49,8.42133255]
[1723415217810,7.016,142.53,142.47,8.42201662]
[1723415218237,7.016,142.53,142.47,25.96851662]
[1723415218423,7.016,142.53,142.48,7.0183]
[1723415219425,29.09,142.56,142.46,23.4044]
[1723415219426,29.09,142.56,142.49,18.9476319]
[1723415219631,7.0146,142.56,142.5,7.0171]
[1723415219829,29.09,142.58,142.49,17.5442]
[1723415220016,29.09,142.56,142.49,17.5442]
[1723415220213,29.09,142.58,142.49,17.5442]
[1723415220945,29.09,142.58,142.5,1.40319483]
[1723415221446,7.015,142.56,142.5,8.42059483]
[1723415221630,7.015,142.56,142.51,7.0168]
[1723415221829,7.015,142.56,142.52,1.40315336]
[1723415222043,29.09,142.6,142.52,24.8515]
[1723415222848,29.09,142.6,142.53,1.40309507]
[1723415223025,29.09,142.58,142.52,24.8515]
[1723415223341,36.1036,142.58,142.52,31.868]
[1723415223548,7.0141,142.57,142.52,31.868]
[1723415223739,7.0136,142.58,142.52,31.868]
[1723415224040,7.0141,142.57,142.52,31.868]
[1723415224619,7.015,142.56,142.52,24.8515]
[1723415224845,7.0142,142.57,142.52,24.8515]
[1723415225243,29.09,142.58,142.52,24.8515]
[1723415225547,7.016,142.53,142.52,24.8515]
[1723415225734,7.0156,142.54,142.52,24.8515]
[1723415226118,7.016,142.53,142.52,24.8515]
[1723415226324,29.09,142.54,142.48,25.773]
[1723415226534,7.0179,142.5,142.48,25.773]
[1723415227244,29.09,142.49,142.44,25.773]
[1723415227441,29.09,142.47,142.44,25.773]
[1723415227825,29.09,142.49,142.44,25.773]
[1723415228743,29.09,142.51,142.46,7.0194]
[1723415229067,29.09,142.53,142.48,7.0181]
[1723415229351,7.0166,142.52,142.46,24.5676]
[1723415229551,36.1061,142.53,142.48,7.0183]
[1723415229737,7.0161,142.53,142.48,7.0183]
[1723415230428,29.09,142.55,142.46,17.5486]
[1723415230751,7.0151,142.55,142.5,7.0171]
[1723415230949,7.0146,142.56,142.5,7.0171]
[1723415231446,29.09,142.57,142.49,7.018]
[1723415231950,29.09,142.57,142.48,27.1767]
[1723415231951,7.0151,142.55,142.5,7.0173]
[1723415232253,7.0149,142.56,142.5,7.0174]
[1723415232427,7.0166,142.52,142.44,53.2545]
[1723415232931,36.1061,142.53,142.44,64.7945]
[1723415233323,29.09,142.53,142.46,7.0194]
[1723415233527,7.0172,142.51,142.46,24.5674]
[1723415233728,29.09,142.53,142.46,24.5674]
[1723415234047,7.0165,142.52,142.47,7.0189]
[1723415234542,7.0172,142.51,142.46,17.548]
[1723415234746,7.0171,142.51,142.46,17.548]
[1723415235059,29.09,142.51,142.44,32.7931]
[1723415235254,7.0181,142.49,142.44,32.7931]
[1723415235553,29.09,142.51,142.44,32.7934]
[1723415235736,7.0195,142.46,142.44,25.773]
[1723415235932,7.0189,142.48,142.44,25.773]
[1723415236133,36.108,142.49,142.44,25.773]
[1723415236333,36.108,142.49,142.44,32.7934]
[1723415237653,1.39736078,142.48,142.44,25.773]
[1723415237849,7.0191,142.47,142.44,25.773]
[1723415238369,1.39736078,142.46,142.44,25.773]
[1723415238731,7.0214,142.43,142.39,25.7988]
[1723415239553,1.39736078,142.42,142.39,25.7988]
[1723415239789,1.39736078,142.46,142.39,25.7988]
[1723415240056,29.09,142.45,142.39,25.7988]
[1723415240251,7.0205,142.44,142.39,32.8213]
[1723415240836,36.11,142.45,142.4,7.0224]
[1723415241444,36.11,142.45,142.39,32.8216]
[1723415241955,29.09,142.43,142.36,24.522]
[1723415242256,1.39736078,142.42,142.36,24.522]
[1723415242433,7.022,142.41,142.36,31.546]
[1723415242752,8.41976078,142.4,142.36,24.522]
[1723415243056,1.39736078,142.39,142.36,24.522]
[1723415243242,1.39736078,142.39,142.36,31.5463]
[1723415243449,8.41936078,142.41,142.36,31.5463]
[1723415243759,7.0221,142.41,142.36,31.5463]
[1723415244166,8.41996078,142.4,142.36,24.522]
[1723415244340,1.39736078,142.39,142.36,31.5461]
[1723415244546,29.09,142.43,142.36,31.5461]
[1723415244764,29.09,142.39,142.3,24.43]
[1723415244968,7.0234,142.38,142.33,7.0255]
[1723415246242,29.09,142.39,142.31,17.5664]
[1723415247237,7.0248,142.36,142.31,17.5664]
[1723415247444,29.09,142.39,142.31,24.5933]
[1723415247633,7.0251,142.35,142.31,17.5664]
[1723415247838,29.09,142.37,142.3,24.43]
[1723415248343,36.1143,142.37,142.32,7.0264]
[1723415248742,7.0244,142.36,142.31,7.0268]
[1723415249848,7.024,142.37,142.32,7.0261]
[1723415250054,29.09,142.41,142.33,17.5647]
[1723415250475,7.0239,142.37,142.33,17.5647]
[1723415250767,7.0235,142.38,142.33,24.5906]
[1723415250978,1.39736078,142.37,142.3,41.9979]
[1723415251153,7.0234,142.38,142.33,7.0258]
[1723415251356,7.0239,142.37,142.32,7.0263]
[1723415251556,7.0245,142.36,142.31,7.0269]
[1723415251759,8.42226078,142.35,142.3,49.0249]
[1723415251961,7.0244,142.37,142.31,7.0266]
[1723415252267,7.0244,142.37,142.33,7.0259]
[1723415252646,7.0235,142.38,142.33,7.0259]
[1723415252859,7.023,142.39,142.34,7.0253]
[1723415253063,410.09,142.42,142.31,29.09]
[1723415253264,29.09,142.42,142.33,29.09]
[1723415253562,7.022,142.41,142.36,7.0243]
[1723415254068,49.92884378,142.45,142.36,24.4548]
[1723415254763,7.021,142.43,142.38,7.0234]
[1723415255266,1.39736078,142.42,142.36,42.0147]
[1723415256143,7.0228,142.4,142.36,42.0147]
[1723415256346,7.0229,142.39,142.36,24.4548]
[1723415256556,29.09,142.41,142.33,17.5645]
[1723415256761,7.0243,142.37,142.33,17.5645]
[1723415256970,7.0234,142.38,142.33,24.5901]
[1723415257758,1.39736078,142.37,142.32,24.4548]
[1723415257952,7.0235,142.38,142.33,7.0258]
[1723415258161,1.39736078,142.37,142.32,24.4548]
[1723415258458,8.42136078,142.37,142.32,31.4811]
[1723415258667,7.024,142.37,142.32,31.4811]
[1723415259047,29.09,142.38,142.32,24.4548]
[1723415259371,1.39736078,142.37,142.33,17.5636]
[1723415259744,7.0244,142.36,142.32,31.4812]
[1723415260070,8.42136078,142.37,142.32,31.4812]
[1723415260777,7.0253,142.35,142.3,24.5949]
[1723415261073,17.5555,142.41,142.31,29.09]
[1723415261074,11.69876078,142.41,142.31,29.09]
[1723415261279,7.29912781,142.43,142.33,29.09]
[1723415261455,7.0229,142.39,142.34,8.428178]
[1723415261872,7.0226,142.4,142.35,7.0249]
[1723415262255,7.023,142.39,142.34,25.99086663]
[1723415262761,7.0234,142.38,142.34,25.99086663]
[1723415262969,7.0239,142.37,142.31,46.6567]
[1723415263671,7.0234,142.39,142.31,46.6567]
[1723415263892,7.0228,142.4,142.35,7.0249]
[1723415264047,27.0229,142.39,142.34,8.43016247]
[1723415264463,7.0234,142.38,142.34,1.40486247]
[1723415264666,7.0234,142.38,142.33,24.5895]
[1723415264945,20.0,142.39,142.35,7.0249]
[1723415265149,27.1957161,142.43,142.36,32.0368]
[1723415265150,7.022,142.41,142.36,32.0368]
[1723415265351,20.0,142.4,142.36,32.0368]
[1723415265572,27.0224,142.4,142.36,25.0125]
[1723415266150,7.0224,142.4,142.36,25.0125]
[1723415266350,7.0229,142.39,142.36,25.0125]
[1723415267082,7.0223,142.41,142.36,33.44162337]
[1723415267380,7.0239,142.37,142.36,25.0125]
[1723415267671,46.6448,142.42,142.36,25.0125]
[1723415268370,7.0233,142.39,142.36,25.0125]
[1723415269280,46.6448,142.42,142.36,25.0125]
[1723415269576,7.0228,142.4,142.36,25.0125]
[1723415269789,7.023,142.39,142.36,25.0125]
[1723415270391,29.09,142.42,142.36,25.0125]
[1723415270565,20.0,142.41,142.36,25.0125]
[1723415270764,37.5556,142.41,142.36,25.0125]
[1723415271573,7.29297409,142.4,142.36,25.0125]
[1723415271787,20.0,142.39,142.31,30.8597]
[1723415271990,20.0,142.39,142.32,1.40494597]
[1723415272294,20.0,142.39,142.33,1.4049153]
[1723415272468,7.29318894,142.38,142.33,1.4049153]
[1723415272665,7.024,142.37,142.33,1.4049153]
[1723415273769,14.31726537,142.37,142.33,1.4049153]
[1723415274195,7.024,142.37,142.33,1.4049153]
[1723415274577,27.023,142.39,142.34,7.025]
[1723415274899,7.023,142.39,142.35,1.40471816]
[1723415275084,7.023,142.39,142.36,1.40461948]
[1723415275687,7.0225,142.4,142.35,7.0247]
[1723415276008,7.0225,142.4,142.35,30.2747]
[1723415276585,40.8016,142.44,142.35,23.25]
[1723415276790,24.64736078,142.42,142.34,17.5628]
[1723415276988,30.54202525,142.42,142.34,17.5628]
[1723415277193,7.0228,142.4,142.34,24.5881]
[1723415277378,7.0228,142.4,142.35,7.0244]
[1723415277800,23.25,142.41,142.31,64.6499]
[1723415277971,7.024,142.37,142.32,7.0259]
[1723415278170,7.0244,142.36,142.31,71.6767]
[1723415278382,7.0238,142.38,142.32,7.0263]
[1723415278579,7.0239,142.37,142.33,1.40412369]
[1723415278797,23.25,142.41,142.33,18.96782369]
[1723415278985,7.29202525,142.42,142.34,1.40402504]
[1723415279189,20.0,142.41,142.34,1.40402504]
[1723415279512,7.0224,142.41,142.36,7.0243]
[1723415279796,7.0238,142.38,142.33,40.8137]
[1723415280007,23.25,142.41,142.33,40.8137]
[1723415280500,7.0234,142.39,142.34,7.0253]
[1723415281379,7.0234,142.38,142.34,7.0253]
[1723415281583,7.023,142.39,142.34,7.0253]
[1723415282006,7.023,142.39,142.34,7.6653541]
[1723415282300,7.023,142.39,142.35,1.40476765]
[1723415282503,7.0235,142.38,142.35,1.40476765]
[1723415282685,23.25,142.41,142.33,17.5637]
[1723415282686,7.024,142.37,142.33,17.5637]
[1723415282886,7.024,142.37,142.34,1.40481983]
[1723415283387,7.024,142.37,142.33,17.5637]
[1723415283388,7.024,142.37,142.33,18.96862208]
[1723415283590,7.0244,142.36,142.33,1.40492208]
[1723415283787,7.0244,142.36,142.31,54.1096]
[1723415283988,23.25,142.39,142.32,7.0263]
[1723415284200,23.25,142.39,142.33,8.43059849]
[1723415284374,31.96188983,142.41,142.33,8.43059849]
[1723415284579,20.0,142.4,142.33,8.43059849]
[1723415284783,7.0238,142.38,142.33,8.43059849]
[1723415285078,20.0,142.4,142.31,47.0829]
[1723415285079,7.0241,142.37,142.34,1.40488008]
[1723415285973,20.0,142.4,142.34,1.40488008]
[1723415286176,7.0234,142.39,142.34,8.43028008]
[1723415286373,7.0234,142.39,142.34,7.0254]
[1723415286794,7.0234,142.38,142.34,7.0254]
[1723415287008,7.0234,142.38,142.33,30.2758]
[1723415287183,7.024,142.37,142.34,1.40473927]
[1723415287378,7.024,142.37,142.33,7.0258]
[1723415287672,7.0235,142.38,142.33,7.0258]
[1723415287875,20.0,142.4,142.34,18.96773944]
[1723415288075,27.0224,142.4,142.34,18.96773944]
[1723415288294,25.56495973,142.43,142.35,7.0248]
[1723415288572,7.0229,142.39,142.36,1.40467032]
[1723415288800,7.0225,142.4,142.35,7.0248]
[1723415289177,34.27684956,142.43,142.34,24.5883]
[1723415289178,7.023,142.39,142.34,24.5883]
[1723415290077,51.83004956,142.43,142.33,30.2758]
[1723415290281,23.25,142.41,142.31,64.6496]
[1723415290489,20.0,142.4,142.31,64.6496]
[1723415290690,7.024,142.37,142.33,7.0259]
[1723415291202,7.024,142.37,142.34,1.40412789]
[1723415291591,20.0,142.4,142.33,7.0258]
[1723415291797,7.023,142.39,142.34,7.0253]
[1723415292001,7.023,142.39,142.35,1.40473849]
[1723415292174,22.39366505,142.4,142.35,1.40473849]
[1723415292380,7.0235,142.38,142.35,1.40473849]
[1723415292581,7.0235,142.38,142.33,24.59]
[1723415292798,22.39366505,142.4,142.34,1.40474076]
[1723415292996,7.024,142.37,142.34,1.40474076]
[1723415293192,7.0256,142.34,142.31,23.8329]
[1723415293402,40.8079,142.39,142.31,47.0829]
[1723415293602,7.0243,142.37,142.32,7.0262]
[1723415293916,22.39366505,142.4,142.33,23.25]
[1723415294209,7.023,142.39,142.33,23.25]
[1723415294708,22.39366505,142.4,142.33,23.25]
[1723415294709,7.0236,142.38,142.33,30.2759]
[1723415295301,23.25,142.42,142.34,17.5629]
[1723415295497,25.65565905,142.42,142.34,17.5629]
[1723415295701,23.25,142.4,142.34,0.61633622]
[1723415295893,2.40565905,142.42,142.31,23.8329]
[1723415295894,7.0254,142.35,142.31,23.8329]
[1723415296102,23.25,142.38,142.32,1.40503636]
[1723415296307,7.0243,142.37,142.33,1.40494366]
[1723415298501,7.0274,142.3,142.26,25.5661]
[1723415298809,23.25,142.32,142.26,25.5661]
[1723415299010,23.25,142.34,142.26,25.5661]
[1723415299315,7.0253,142.35,142.3,7.027]
[1723415299684,7.0253,142.35,142.3,8.43209062]
[1723415300018,7.0253,142.35,142.3,7.027]
[1723415300189,7.0253,142.35,142.31,1.40509756]
[1723415300910,270.0937,142.41,142.31,1.40509756]
[1723415300911,11.41898887,142.42,142.33,23.37549]
[1723415301089,7.0234,142.39,142.34,7.0253]
[1723415301295,7.023,142.39,142.34,7.0254]
[1723415301523,34.66898887,142.42,142.33,23.25]
[1723415301524,7.0234,142.38,142.33,30.2758]
[1723415301689,7.0234,142.38,142.33,7.0258]
[1723415302289,7.0229,142.39,142.34,7.0253]
[1723415302495,23.25,142.42,142.35,1.40346528]
[1723415302799,23.25,142.42,142.34,17.68819]
[1723415302800,23.25,142.42,142.36,1.40452799]
[1723415303186,7.0223,142.41,142.36,8.42892799]
[1723415303387,23.25,142.42,142.36,1.40452799]
[1723415303583,23.25,142.42,142.35,1.40452799]
[1723415303783,23.25,142.42,142.36,1.40452799]
[1723415304292,7.0226,142.4,142.36,1.40452799]
[1723415304495,23.25,142.42,142.36,1.40452799]
[1723415304800,24.64736078,142.42,142.34,17.68819]
[1723415304987,23.25,142.4,142.33,0.76089669]
[1723415305312,7.0238,142.38,142.33,7.78649669]
[1723415305510,23.25,142.42,142.33,0.76089669]
[1723415305999,23.25,142.4,142.32,24.1545]
[1723415306793,7.023,142.39,142.34,24.5882]
[1723415306994,30.2725,142.4,142.35,7.0248]
[1723415307815,7.023,142.39,142.34,24.5882]
[1723415308199,30.2725,142.4,142.34,17.5628]
[1723415308409,7.0225,142.4,142.34,17.5628]
[1723415308619,7.0225,142.4,142.35,7.0245]
[1723415308825,30.2725,142.4,142.35,7.0245]
[1723415309812,23.25,142.4,142.34,24.588]
[1723415310811,7.023,142.39,142.34,24.588]
[1723415311004,30.2725,142.4,142.35,7.85474943]
[1723415311318,30.2725,142.4,142.35,7.0247]
[1723415312028,23.25,142.36,142.32,24.1545]
[1723415312207,10.3975,142.38,142.3,7.0271]
[1723415312409,23.25,142.35,142.3,7.0271]
[1723415312734,23.25,142.37,142.29,48.8924]
[1723415313697,7.0244,142.36,142.31,7.0268]
[1723415313901,7.84311372,142.38,142.34,7.0251]
[1723415314101,10.3975,142.42,142.35,1.40480512]
[1723415314289,7.0225,142.4,142.36,27.04696761]
[1723415314517,7.023,142.39,142.36,25.6424]
[1723415315212,7.84311372,142.42,142.37,0.3604251]
[1723415315599,7.84311372,142.42,142.36,25.6424]
[1723415315937,24.64736078,142.41,142.36,25.6424]
[1723415316116,23.25,142.41,142.36,25.6424]
[1723415316427,7.0225,142.4,142.36,25.6424]
[1723415317124,7.0219,142.41,142.36,34.07118079]
[1723415317331,14.86461372,142.42,142.37,7.0238]
[1723415317622,7.0219,142.41,142.36,34.07128079]
[1723415318400,7.0225,142.4,142.36,25.6424]
[1723415318601,7.0236,142.38,142.36,25.6424]
[1723415319034,1.39736078,142.38,142.33,23.8905]
[1723415319208,7.0248,142.36,142.33,23.8905]
[1723415320038,7.024,142.37,142.33,23.8905]
[1723415321821,23.25,142.37,142.33,23.8905]
[1723415322123,7.025,142.35,142.33,23.8905]
[1723415322426,7.0244,142.36,142.33,23.8905]
[1723415322833,23.25,142.37,142.3,31.999]
[1723415323027,7.0259,142.33,142.3,24.9717]
[1723415323214,30.2759,142.33,142.3,24.9717]
[1723415323416,7.0264,142.32,142.28,17.5705]
[1723415323614,23.25,142.33,142.28,24.5988]
[1723415323802,23.25,142.33,142.26,34.73]
[1723415323803,7.0265,142.32,142.27,7.0288]
[1723415324005,30.276,142.33,142.28,7.0283]
[1723415325332,7.0264,142.32,142.27,24.6002]
[1723415325642,7.0269,142.31,142.27,17.5715]
[1723415325830,7.0264,142.32,142.27,24.6003]
[1723415326306,7.0269,142.31,142.27,17.5715]
[1723415326502,7.0263,142.33,142.27,17.5715]
[1723415326929,7.0264,142.32,142.27,17.5715]
[1723415327226,8.42336078,142.33,142.27,17.5715]
[1723415327732,8.42336078,142.33,142.28,7.0283]
[1723415327937,7.026,142.33,142.28,7.0283]